bitfinex-derivatives/quotes_ETHF0:USTF0_20250403
["timestamp","ask_amount","ask_price","bid_price","bid_amount"]
[1743694074466,0.00845332,1775.6,1775.4,45.23006919]
[1743694074668,0.00845332,1775.6,1775.4,45.13471]
[1743694074969,0.00845332,1775.6,1775.4,44.0078]
[1743694075168,0.00845332,1775.6,1775.4,45.13473]
[1743694075362,0.00845332,1775.6,1775.4,45.5311]
[1743694075569,1.48075332,1775.6,1775.4,46.65801]
[1743694075775,1.48075332,1775.6,1775.5,1.12687]
[1743694076178,1.48075332,1775.6,1775.4,45.5311]
[1743694076374,1.48075332,1775.6,1775.5,1.12687]
[1743694076570,1.48075332,1775.6,1775.5,2.58967]
[1743694077281,0.00845332,1775.6,1775.5,3.08270295]
[1743694077767,0.00845332,1775.6,1775.5,3.80019025]
[1743694077966,1.4723,1776.0,1775.8,1.12663]
[1743694078170,1.4723,1776.0,1775.9,4.33441]
[1743694078579,3.2078,1776.6,1776.1,1.12647]
[1743694078771,5.9202,1776.5,1776.2,4.33417]
[1743694078970,3.2078,1776.7,1776.2,3.2078]
[1743694079169,28.35875372,1777.2,1776.6,3.2078]
[1743694079373,1.12596,1777.0,1776.8,3.2078]
[1743694079568,2.05759891,1777.1,1776.8,3.2078]
[1743694079569,1.8406,1777.1,1776.8,4.33383]
[1743694079773,5.69892,1777.0,1776.8,4.33383]
[1743694080078,4.573,1777.0,1776.8,3.2078]
[1743694080379,1.83168,1776.9,1776.8,3.2078]
[1743694080683,5.2747,1776.9,1776.8,3.2078]
[1743694080979,8.90068,1776.9,1776.8,3.2078]
[1743694082178,4.569,1776.9,1776.8,3.2078]
[1743694082385,0.7147,1777.1,1776.8,3.2078]
[1743694082585,2.1636,1777.1,1777.0,3.2078]
[1743694082780,2.1636,1777.1,1777.0,4.33372]
[1743694082979,6.7466,1777.1,1777.0,4.33372]
[1743694083178,6.0319,1777.1,1777.0,4.33372]
[1743694083386,4.583,1777.1,1777.0,4.33372]
[1743694084282,4.583,1777.1,1777.0,3.2078]
[1743694084686,4.583,1777.1,1777.0,4.6224]
[1743694084891,7.14335,1777.1,1777.0,3.2078]
[1743694085182,1.12598,1776.9,1776.8,3.2078]
[1743694086083,2.5,1776.9,1776.5,0.7663]
[1743694086289,1.12598,1776.9,1776.8,3.14749891]
[1743694086489,5.62667891,1776.9,1776.8,3.14749891]
[1743694086786,1.4175,1777.1,1776.8,3.14749891]
[1743694087783,5.68997,1777.0,1776.8,3.14749891]
[1743694087985,5.964,1777.4,1776.8,3.14749891]
[1743694088299,5.626,1778.2,1777.3,3.2078]
[1743694088300,3.2078,1778.2,1777.3,3.2078]
[1743694088478,3.2078,1777.6,1777.2,3.2078]
[1743694088781,2.814,1777.5,1777.2,0.00845332]
[1743694089087,1.12573,1777.3,1777.2,0.00845332]
[1743694089380,10.00238,1777.3,1776.6,1.12613]
[1743694089581,1.12627,1776.5,1776.2,0.70947424]
[1743694089782,4.7,1776.4,1776.2,4.98337315]
[1743694089980,4.7,1776.4,1776.2,3.2078]
[1743694090181,4.7,1776.4,1776.1,43.30984]
[1743694090182,1.1263,1776.4,1776.1,42.1834]
[1743694090486,7.9178,1777.0,1776.4,1.12627]
[1743694090687,1.82268,1776.8,1776.5,4.5912]
[1743694090987,3.2078,1776.6,1776.1,41.93490332]
[1743694091183,5.83929,1776.5,1776.1,43.40920332]
[1743694091384,5.83929,1776.5,1776.2,1.4743]
[1743694091885,1.12633,1776.4,1776.2,1.4743]
[1743694092085,1.12642,1776.2,1776.1,40.80845332]
[1743694092292,4.705,1776.2,1776.1,40.80845332]
[1743694092485,5.83142,1776.2,1776.1,40.80845332]
[1743694093193,3.2078,1776.6,1776.1,40.80845332]
[1743694093392,1.12625,1776.5,1776.2,4.6821]
[1743694093688,7.9188,1776.6,1776.2,4.6821]
[1743694093886,1.12636,1776.3,1776.2,3.2078]
[1743694094388,1.12628,1776.5,1776.2,4.33421]
[1743694094591,4.711,1776.6,1776.2,4.613]
[1743694094785,5.83719,1776.6,1776.2,3.2078]
[1743694094986,4.711,1776.6,1776.3,2.53151]
[1743694095185,4.711,1776.6,1776.4,1.4052]
[1743694095387,4.711,1776.6,1776.4,5.73929]
[1743694095683,0.6966,1776.8,1776.4,1.4052]
[1743694095994,4.693,1776.8,1776.7,1.1261]
[1743694096189,0.00845332,1776.9,1776.7,4.3339]
[1743694096490,0.00845332,1776.9,1776.8,1.4052]
[1743694096689,1.48945332,1776.9,1776.8,1.4052]
[1743694097289,2.61543332,1776.9,1776.7,3.2078]
[1743694097489,1.12604,1776.8,1776.7,3.2078]
[1743694097688,1.3875,1776.8,1776.7,3.2078]
[1743694098388,0.00845332,1776.9,1776.8,1.12604]
[1743694098785,0.00845332,1776.9,1776.8,1.87764]
[1743694100387,0.00845332,1776.9,1776.8,0.7516]
[1743694100593,0.00845332,1776.9,1776.8,1.87764]
[1743694101702,0.00845332,1776.9,1776.8,0.7516]
[1743694102004,1.13443332,1776.9,1776.8,0.7516]
[1743694102195,2.61693332,1776.9,1776.8,0.7516]
[1743694102497,1.12604,1776.8,1776.7,4.7039]
[1743694102698,2.60854,1776.8,1776.7,3.2078]
[1743694102899,1.12612,1776.7,1776.5,6.47629]
[1743694103091,2.51337,1776.6,1776.5,5.28979891]
[1743694103294,1.3872,1776.6,1776.5,2.08199891]
[1743694103500,1.3872,1776.6,1776.3,4.33412]
[1743694103800,1.12624,1776.5,1776.3,5.73312]
[1743694103998,1.12623,1776.5,1776.3,5.73311]
[1743694104301,1.3872,1776.5,1776.3,4.6068]
[1743694104600,1.1263,1776.4,1776.3,4.6068]
[1743694104801,1.1263,1776.4,1776.3,3.69892753]
[1743694105196,1.1263,1776.4,1776.1,40.80845332]
[1743694105197,1.12642,1776.2,1776.1,40.80845332]
[1743694105400,1.12642,1776.2,1775.9,3.2078]
[1743694105401,1.12655,1776.0,1775.9,3.2078]
[1743694105696,5.75755,1776.0,1775.9,3.69969995]
[1743694105893,5.75755,1776.0,1775.9,44.49969995]
[1743694106395,5.75755,1776.0,1775.9,40.8]
[1743694107197,4.631,1776.0,1775.9,40.8]
[1743694107401,5.3636,1776.3,1775.9,47.31575156]
[1743694107592,6.7853,1776.3,1776.2,1.12642]
[1743694107798,4.623,1776.5,1776.3,1.12635]
[1743694107999,7.17095,1776.5,1776.3,1.5246]
[1743694108195,4.623,1776.5,1776.4,1.1263]
[1743694108404,4.623,1776.5,1776.3,2.65093]
[1743694108600,5.74923,1776.5,1776.3,2.65093]
[1743694108800,7.17093,1776.5,1776.4,1.5246]
[1743694108999,7.17093,1776.5,1776.2,3.2078]
[1743694109000,1.12632,1776.4,1776.2,4.33421]
[1743694109296,2.52382,1776.4,1776.3,1.94845184]
[1743694109500,1.12644,1776.2,1776.0,5.05653]
[1743694109697,1.12644,1776.2,1776.1,0.49166859]
[1743694110203,1.12649,1776.1,1776.0,2.1792]
[1743694110396,2.52399,1776.1,1776.0,2.67104109]
[1743694110597,2.52399,1776.1,1776.0,0.49184109]
[1743694111205,1.12655,1776.0,1775.9,40.8]
[1743694111399,2.52405,1776.0,1775.9,42.74880986]
[1743694111707,2.52405,1776.0,1775.9,42.257]
[1743694112005,1.3975,1776.0,1775.9,43.38361]
[1743694112201,1.12655,1776.0,1775.9,42.257]
[1743694113204,8.85377,1776.2,1775.9,40.8]
[1743694113407,1.12655,1776.0,1775.9,40.8]
[1743694115012,1.12661,1775.9,1775.8,0.00845332]
[1743694115205,2.60241,1775.9,1775.8,0.00845332]
[1743694115507,7.16941,1775.9,1775.8,0.00845332]
[1743694116210,7.92691,1775.9,1775.8,0.00845332]
[1743694117916,1.12674,1775.7,1775.6,44.0078]
[1743694118214,1.12674,1775.7,1775.6,3.2078]
[1743694119711,2.64854,1775.7,1775.6,3.2078]
[1743694122106,2.64854,1775.7,1775.5,0.00845332]
[1743694122107,1.1268,1775.6,1775.5,0.00845332]
[1743694122306,10.326,1775.6,1775.5,0.00845332]
[1743694122511,12.826,1775.6,1775.5,0.00845332]
[1743694123014,1.12699,1775.3,1775.2,40.8]
[1743694123211,1.12699,1775.3,1775.0,4.33492]
[1743694123212,1.12712,1775.1,1775.0,3.2078]
[1743694123616,1.4654,1775.1,1774.8,3.2078]
[1743694123814,1.12733,1774.8,1774.6,2.64251]
[1743694124114,1.12739,1774.7,1774.6,3.2078]
[1743694124313,5.65539,1774.7,1774.6,1.4624]
[1743694124511,5.65539,1774.7,1774.6,4.6702]
[1743694124715,5.65539,1774.7,1774.6,45.4702]
[1743694125011,5.65539,1774.7,1774.6,42.2624]
[1743694125711,4.528,1774.7,1774.6,40.8]
[1743694125909,5.65537,1774.7,1774.6,42.2624]
[1743694126309,4.528,1774.7,1774.6,42.2624]
[1743694126513,4.528,1774.7,1774.6,43.38984]
[1743694126918,1.45075332,1774.9,1774.8,1.12731]
[1743694127117,0.00845332,1774.9,1774.8,1.12731]
[1743694127316,0.00845332,1774.9,1774.8,2.57671]
[1743694127910,1.13570332,1774.9,1774.8,1.4494]
[1743694129219,1.12731,1774.8,1774.7,3.2078]
[1743694129413,1.12737,1774.7,1774.6,1.4494]
[1743694129615,1.12744,1774.6,1774.5,0.74265332]
[1743694129820,1.12744,1774.6,1774.5,2.19205332]
[1743694130314,1.5131,1774.7,1774.5,2.19205332]
[1743694130515,5.62832,1774.8,1774.5,47.32729332]
[1743694130917,1.12738,1774.7,1774.5,47.32729332]
[1743694131423,1.12744,1774.6,1774.5,42.99205332]
[1743694131820,1.4261,1774.7,1774.5,42.99205332]
[1743694132124,1.12744,1774.6,1774.5,40.80845332]
[1743694133121,1.12763,1774.3,1774.2,0.7529]
[1743694133318,5.59763,1774.3,1774.2,2.184]
[1743694133522,5.59763,1774.3,1774.2,42.2311]
[1743694133726,4.47,1774.3,1774.2,42.2311]
[1743694134023,5.59763,1774.3,1774.2,42.2311]
[1743694134424,5.59763,1774.3,1774.2,40.8]
[1743694134724,1.12769,1774.2,1774.1,0.00845332]
[1743694134921,2.58129,1774.2,1774.1,0.00845332]
[1743694135426,7.1614,1774.2,1773.6,3.9558]
[1743694135729,1.1279,1773.9,1773.7,1.4311]
[1743694135918,5.9166,1773.8,1773.7,1.4311]
[1743694136124,4.463,1773.8,1773.7,2.55911]
[1743694136324,4.463,1773.8,1773.7,1.4311]
[1743694136825,4.463,1773.8,1773.7,2.55911]
[1743694137822,6.39295445,1775.3,1773.8,2.81987]
[1743694138124,1.12761,1774.4,1774.3,3.2078]
[1743694138326,1.4939,1774.5,1774.2,1.4641]
[1743694138530,1.4939,1774.3,1774.2,2.59179]
[1743694138733,0.7635,1774.6,1774.3,1.12758]
[1743694138927,0.7635,1774.6,1774.4,5.79942]
[1743694139126,1.89940332,1774.6,1774.4,5.79942]
[1743694139825,0.77195332,1774.6,1774.4,5.79942]
[1743694140024,0.77195332,1774.6,1774.4,4.6719]
[1743694140327,1.12757,1774.4,1774.3,0.00845332]
[1743694140824,1.4796,1774.4,1774.3,0.00845332]
[1743694141029,4.5,1774.5,1774.3,2.52198332]
[1743694141225,0.77195332,1774.6,1774.5,1.1275]
[1743694141425,0.00845332,1774.6,1774.5,1.1275]
[1743694141633,0.00845332,1774.6,1774.5,2.5134]
[1743694142532,0.00845332,1774.6,1774.5,1.3859]
[1743694142831,1.41335332,1774.6,1774.5,1.69842962]
[1743694143438,2.54079332,1774.6,1774.5,0.31252962]
[1743694143828,5.04079332,1774.6,1774.5,0.31252962]
[1743694144027,5.04079332,1774.6,1774.5,0.14668962]
[1743694144231,1.12757,1774.4,1774.3,0.00845332]
[1743694144429,8.84037,1774.4,1774.3,0.00845332]
[1743694144630,11.34037,1774.4,1774.3,0.00845332]
[1743694144930,12.74527,1774.4,1774.3,0.00845332]
[1743694146030,1.12795,1773.8,1773.7,1.4858]
[1743694146338,1.12801,1773.7,1773.6,40.8]
[1743694146632,1.4939,1773.7,1773.4,3.9095]
[1743694146832,1.4939,1773.7,1773.3,4.6067]
[1743694146833,1.1282,1773.4,1773.3,4.6067]
[1743694147035,5.6192,1773.4,1773.1,1.12835]
[1743694147230,1.4939,1773.3,1773.2,45.41233557]
[1743694148528,1.4939,1773.3,1773.2,42.20453557]
[1743694149137,4.491,1773.4,1773.3,1.12826]
[1743694149937,4.491,1773.4,1773.2,45.41233557]
[1743694150539,0.00845332,1773.5,1773.2,45.41233557]
[1743694150733,0.00845332,1773.5,1773.4,3.2078]
[1743694151133,0.00845332,1773.5,1773.4,5.7552]
[1743694152035,0.00845332,1773.5,1773.4,4.627]
[1743694153134,1.13659332,1773.5,1773.4,3.2078]
[1743694153438,2.59259332,1773.5,1773.4,3.2078]
[1743694154241,2.59264332,1773.5,1773.3,1.532]
[1743694154540,2.59259332,1773.5,1773.3,1.532]
[1743694155041,1.1282,1773.4,1773.3,1.532]
[1743694155240,1.46445332,1773.5,1773.3,1.532]
[1743694155437,0.00845332,1773.5,1773.4,4.336]
[1743694155642,0.00845332,1773.5,1773.4,4.81837457]
[1743694155939,0.00845332,1773.5,1773.4,6.22537457]
[1743694156242,0.00845332,1773.5,1773.4,6.94215913]
[1743694157445,0.00845332,1773.5,1773.4,6.94202707]
[1743694158141,1.4896,1773.9,1773.4,9.08544758]
[1743694158443,1.12798,1773.8,1773.7,3.2078]
[1743694158739,1.12795,1773.8,1773.7,5.84351]
[1743694159048,61.256,1774.1,1773.8,1.1279]
[1743694159340,1.12782,1774.0,1773.9,1.5077]
[1743694160244,2.61102,1774.0,1773.9,1.5077]
[1743694160936,2.61102,1774.0,1773.9,4.7155]
[1743694161438,2.61102,1774.0,1773.9,3.2078]
[1743694161643,2.61102,1774.0,1773.6,4.6685]
[1743694161644,1.4832,1774.0,1773.6,4.6685]
[1743694161844,1.12788,1773.9,1773.7,3.06658887]
[1743694162043,1.4832,1774.0,1773.7,3.30533529]
[1743694162244,1.4832,1774.0,1773.8,1.12795]
[1743694162542,1.4832,1774.0,1773.7,2.5887]
[1743694162740,2.61108,1774.0,1773.7,2.58866]
[1743694163045,1.12789,1773.9,1773.7,2.58866]
[1743694163239,61.26445332,1774.1,1774.0,1.12782]
[1743694163240,0.00845332,1774.1,1774.0,1.12782]
[1743694163438,0.00845332,1774.1,1774.0,4.33562]
[1743694164134,0.00845332,1774.1,1773.9,1.4607]
[1743694164441,1.45765332,1774.1,1773.9,1.4607]
[1743694164631,1.12795,1773.8,1773.7,5.824]
[1743694164830,5.53295,1773.8,1773.7,5.824]
[1743694165042,4.405,1773.8,1773.7,5.824]
[1743694165242,5.53295,1773.8,1773.7,5.824]
[1743694165436,5.8542,1773.8,1773.7,8.33911]
[1743694166041,1.4492,1773.8,1773.7,8.33911]
[1743694166341,4.405,1774.0,1773.9,1.12788]
[1743694166743,5.53283,1774.0,1773.8,4.3357]
[1743694167046,6.95062,1774.0,1773.8,4.3357]
[1743694167340,5.8228,1774.0,1773.8,3.2078]
[1743694167547,1.12788,1773.9,1773.8,3.2078]
[1743694167747,2.54568,1773.9,1773.8,3.2078]
[1743694167932,1.4178,1773.9,1773.8,3.2078]
[1743694168338,2.54568,1773.9,1773.8,3.2078]
[1743694168534,1.4178,1773.9,1773.8,4.33575]
[1743694168740,2.54568,1773.9,1773.8,3.2078]
[1743694168938,2.54568,1773.9,1773.8,4.595]
[1743694169340,1.4178,1773.9,1773.8,5.72295]
[1743694169544,2.54568,1773.9,1773.8,4.595]
[1743694170246,2.54568,1773.9,1773.8,3.2078]
[1743694171742,1.4178,1773.9,1773.8,3.2078]
[1743694172448,2.54568,1773.9,1773.8,3.2078]
[1743694172649,1.4178,1773.9,1773.8,4.33575]
[1743694172952,1.4178,1773.9,1773.8,3.2078]
[1743694173252,2.54568,1773.9,1773.8,3.2078]
[1743694173742,1.12803,1773.7,1773.6,3.2078]
[1743694174049,5.53203,1773.7,1773.6,3.2078]
[1743694174443,5.8173,1773.7,1773.6,4.33587]
[1743694174648,5.8173,1773.7,1773.6,4.80755408]
[1743694174847,5.8173,1773.7,1773.6,5.05714388]
[1743694175450,4.404,1773.7,1773.6,5.05714388]
[1743694175846,5.53201,1773.7,1773.6,0.72127388]
[1743694176149,5.53201,1773.7,1773.4,3.2078]
[1743694176150,8.03201,1773.7,1773.4,3.2078]
[1743694176349,1.12814,1773.5,1773.4,3.2078]
[1743694176847,1.1282,1773.4,1773.3,1.5019]
[1743694177153,4.404,1773.4,1773.3,1.5019]
[1743694177349,5.5322,1773.4,1773.3,4.7097]
[1743694177555,1.12826,1773.3,1773.2,40.80563557]
[1743694177754,2.64356,1773.3,1773.2,40.80563557]
[1743694177954,1.5153,1773.3,1773.2,40.80563557]
[1743694178455,2.64356,1773.3,1773.2,42.30753557]
[1743694178954,1.5153,1773.3,1773.2,42.30753557]
[1743694179159,1.5153,1773.3,1773.2,45.51533557]
[1743694179754,2.64356,1773.3,1773.2,41.52840917]
[1743694180151,2.64356,1773.3,1773.2,40.80563557]
[1743694180954,2.64356,1773.3,1773.2,0.00563557]
[1743694181257,1.5153,1773.3,1772.8,3.2078]
[1743694181456,1.12858,1772.8,1772.7,42.3192]
[1743694181852,4.405,1772.9,1772.8,1.12858]
[1743694182261,4.405,1772.9,1772.8,4.33638]
[1743694182461,5.7913,1772.9,1772.8,4.33638]
[1743694182850,5.7913,1772.9,1772.8,3.2078]
[1743694183056,5.7913,1772.9,1772.8,1.12858]
[1743694183254,5.7913,1772.9,1772.8,4.33638]
[1743694183255,4.405,1772.9,1772.8,4.33638]
[1743694185364,4.405,1772.9,1772.8,5.75708]
[1743694185563,5.53352,1772.9,1772.8,5.75708]
[1743694185970,4.405,1772.9,1772.8,3.2078]
[1743694186158,1.12858,1772.8,1772.7,40.80845332]
[1743694186358,2.55248,1772.8,1772.7,42.22915332]
[1743694186958,2.55248,1772.8,1772.7,43.35780332]
[1743694187163,1.4239,1772.8,1772.7,43.35780332]
[1743694187368,4.405,1772.9,1772.8,1.12858]
[1743694187570,4.405,1772.9,1772.8,5.75708]
[1743694187861,5.53352,1772.9,1772.8,5.75708]
[1743694188260,7.06062,1772.9,1772.8,5.75708]
[1743694189663,1.12858,1772.8,1772.7,0.00845332]
[1743694190169,1.12858,1772.8,1772.7,1.51065332]
[1743694190469,1.12858,1772.8,1772.7,0.00845332]
[1743694190664,2.65568,1772.8,1772.7,0.00845332]
[1743694190869,3.35528,1772.8,1772.7,0.00845332]
[1743694191967,3.35528,1772.8,1772.7,0.00563557]
[1743694192360,5.85528,1772.8,1772.7,0.00563557]
[1743694193568,3.35528,1772.8,1772.7,0.00563557]
[1743694195868,2.2267,1772.8,1772.7,0.00563557]
[1743694196071,3.35528,1772.8,1772.7,0.00563557]
[1743694196371,4.405,1772.8,1772.7,1.13428557]
[1743694196570,4.405,1772.8,1772.7,2.51798557]
[1743694196766,5.53358,1772.8,1772.7,1.38933557]
[1743694197170,4.405,1772.8,1772.7,2.51798557]
[1743694197568,5.53358,1772.8,1772.7,2.51798557]
[1743694199472,5.53358,1772.8,1772.7,1.38933557]
[1743694199971,5.53358,1772.8,1772.7,2.51798557]
[1743694200371,5.53358,1772.8,1772.7,1.38933557]
[1743694200564,5.53358,1772.8,1772.7,0.00563557]
[1743694200970,6.91798,1772.8,1772.7,0.00563557]
[1743694201868,2.51298,1772.8,1772.7,1.13428557]
[1743694202075,8.03358,1772.8,1772.7,0.00563557]
[1743694202271,1.12858,1772.8,1772.7,0.00563557]
[1743694202473,1.3844,1772.9,1772.7,1.13422557]
[1743694202671,0.00845332,1773.0,1772.8,44.0078]
[1743694202873,1.12852,1772.9,1772.8,44.0078]
[1743694203378,1.12852,1772.9,1772.8,40.8]
[1743694203577,1.39285332,1773.0,1772.9,1.12852]
[1743694203869,0.00845332,1773.0,1772.9,1.12852]
[1743694204771,0.00845332,1773.0,1772.9,1.84802]
[1743694204973,0.00845332,1773.0,1772.9,5.57529012]
[1743694205176,2.2597,1773.4,1772.9,5.16807905]
[1743694205380,1.12814,1773.5,1773.4,1.12816]
[1743694205672,5.53312,1773.6,1773.5,1.1281]
[1743694205871,1.12814,1773.5,1773.4,5.05729893]
[1743694206071,2.66224,1773.5,1773.4,0.71285561]
[1743694206273,2.66224,1773.5,1773.1,4.33617]
[1743694206274,1.5341,1773.5,1773.1,4.33617]
[1743694206577,1.4845,1773.4,1773.1,1.12837]
[1743694206777,1.12844,1773.1,1772.9,4.33629]
[1743694206979,8.74587,1773.3,1772.9,4.33631]
[1743694207275,1.4845,1773.2,1772.9,4.3363]
[1743694207475,1.12841,1773.1,1772.9,4.3363]
[1743694207874,1.12846,1773.0,1772.9,3.2078]
[1743694208066,1.12858,1772.8,1772.7,0.00563557]
[1743694208677,1.4845,1772.8,1772.7,1.13428557]
[1743694208874,0.7633,1772.9,1772.8,1.12858]
[1743694209078,1.89182,1772.9,1772.8,3.2078]
[1743694209268,3.28462,1772.9,1772.8,3.2078]
[1743694209577,3.28462,1772.9,1772.7,1.13422557]
[1743694209779,3.28462,1772.9,1772.8,3.2078]
[1743694209981,3.28467,1772.9,1772.8,3.2078]
[1743694210177,1.12858,1772.8,1772.7,0.00563557]
[1743694210477,2.52138,1772.8,1772.7,0.00563557]
[1743694211176,6.92538,1772.8,1772.7,0.00563557]
[1743694212378,10.13318,1772.8,1772.7,0.00563557]
[1743694212595,6.92538,1772.8,1772.7,0.00563557]
[1743694212776,5.7968,1772.8,1772.7,1.13428557]
[1743694212975,0.7633,1772.9,1772.8,1.12858]
[1743694213280,6.93497,1773.0,1772.9,1.12852]
[1743694213477,1.12841,1773.1,1773.0,1.12842]
[1743694213782,1.1284,1773.1,1773.0,1.59147536]
[1743694214083,1.12839,1773.1,1773.0,2.28647536]
[1743694214280,2.0947,1773.2,1773.1,1.12839]
[1743694214577,1.12833,1773.2,1773.1,4.33615]
[1743694214781,1.12833,1773.2,1773.1,3.2078]
[1743694214979,1.12846,1773.0,1772.9,45.1363]
[1743694215176,1.12846,1773.0,1772.9,45.13632]
[1743694215382,5.1093,1773.3,1772.9,46.97082119]
[1743694215679,1.12846,1773.0,1772.9,45.13627]
[1743694215876,1.12846,1773.0,1772.9,44.47080919]
[1743694216081,5.8413,1773.3,1773.1,1.12834]
[1743694216278,1.12834,1773.2,1773.1,4.33614]
[1743694216478,6.96961,1773.3,1773.2,1.12833]
[1743694216681,6.96961,1773.3,1773.2,2.57613]
[1743694216984,5.136,1773.3,1773.2,2.57613]
[1743694217181,6.26426,1773.3,1773.2,1.4478]
[1743694217488,0.732,1773.3,1773.2,2.57613]
[1743694217684,1.12833,1773.2,1773.1,4.33615]
[1743694217883,2.58863,1773.2,1773.1,5.78395]
[1743694218682,1.4603,1773.2,1773.1,5.78395]
[1743694219087,2.58863,1773.2,1773.1,6.50511653]
[1743694219489,2.58863,1773.2,1773.1,5.37676653]
[1743694219677,2.58863,1773.2,1773.1,5.78399]
[1743694220282,1.4603,1773.2,1773.1,5.78399]
[1743694220781,2.58863,1773.2,1773.1,3.92865948]
[1743694220980,7.69403,1773.2,1773.1,0.72085948]
[1743694221486,7.69403,1773.2,1772.9,4.33631]
[1743694221487,1.12845,1773.1,1772.9,4.33631]
[1743694221684,1.4032,1773.1,1772.9,3.2078]
[1743694222000,2.53164,1773.1,1772.9,4.3363]
[1743694222187,1.12846,1773.0,1772.9,4.3363]
[1743694222489,1.4032,1773.0,1772.9,4.3363]
[1743694222685,5.1054,1773.2,1773.1,1.12839]
[1743694222892,6.5086,1773.2,1773.1,1.12839]
[1743694223286,5.8062,1773.2,1773.1,1.12839]
[1743694223486,1.12839,1773.1,1773.0,2.61982]
[1743694223681,1.4032,1773.1,1773.0,2.61982]
[1743694223893,2.53159,1773.1,1773.0,3.34027722]
[1743694224189,2.53159,1773.1,1773.0,0.72045722]
[1743694224387,1.12846,1773.0,1772.9,3.2078]
[1743694224593,3.40736,1773.0,1772.9,3.2078]
[1743694224784,0.732,1773.3,1773.2,1.12833]
[1743694225096,2.81927,1774.2,1773.5,1.12814]
[1743694225392,1.5062,1774.0,1773.6,4.7216]
[1743694225687,2.66183,1773.9,1773.6,4.7216]
[1743694225895,1.5339,1773.8,1773.7,1.12801]
[1743694226097,1.5339,1773.8,1773.7,2.64181]
[1743694226393,1.13636332,1773.9,1773.8,1.12795]
[1743694226694,1.13633332,1773.9,1773.8,5.84955]
[1743694226890,0.00845332,1773.9,1773.8,5.84955]
[1743694227100,0.999,1774.3,1773.8,7.2216]
[1743694227281,1.12782,1774.0,1773.9,1.5138]
[1743694227698,1.3874,1774.1,1773.9,42.3138]
[1743694227886,1.12782,1774.0,1773.9,42.3138]
[1743694228082,1.12772,1774.2,1773.9,42.3138]
[1743694228394,1.13621332,1774.1,1774.0,5.73232]
[1743694228695,0.00845332,1774.1,1774.0,5.73232]
[1743694231593,0.00845332,1774.1,1774.0,8.23232]
[1743694231793,0.999,1774.4,1774.3,1.12763]
[1743694231998,0.999,1774.4,1774.3,4.33543]
[1743694231999,1.12757,1774.4,1774.3,4.33543]
[1743694233095,1.12757,1774.4,1774.3,4.3354]
[1743694233597,2.13498332,1774.5,1774.4,1.12757]
[1743694233893,1.00745332,1774.5,1774.4,8.45807]
[1743694234092,1.00745332,1774.5,1774.4,7.3305]
[1743694234093,2.13495332,1774.5,1774.4,7.3305]
[1743694234393,2.13495332,1774.5,1774.4,5.824]
[1743694234996,2.81893,1774.4,1773.9,3.2078]
[1743694235190,1.12772,1774.2,1773.9,4.7143]
[1743694235385,1.4764,1774.3,1774.0,2.63428]
[1743694235588,1.12769,1774.2,1774.1,1.12772]
[1743694235801,1.12769,1774.2,1774.1,5.84202]
[1743694235997,1.4764,1774.3,1774.2,1.12769]
[1743694236300,2.60407,1774.3,1774.2,1.5065]
[1743694236691,1.12782,1774.0,1773.9,44.0078]
[1743694236887,1.5119,1774.2,1773.9,44.0078]
[1743694237092,8.00598332,1774.5,1774.1,6.02715]
[1743694237298,1.5119,1774.4,1774.1,3.2078]
[1743694237492,2.63951,1774.4,1774.1,3.2078]
[1743694237798,2.6395,1774.4,1774.1,4.6539]
[1743694237993,6.87845332,1774.5,1774.4,1.12757]
[1743694238194,1.00745332,1774.5,1774.4,1.12757]
[1743694238392,1.12732,1774.8,1774.7,1.12733]
[1743694238795,1.5119,1774.9,1774.6,5.3837]
[1743694239091,1.12731,1774.8,1774.7,2.57343]
[1743694239293,1.12716,1775.1,1775.0,1.12717]
[1743694239493,1.12716,1775.1,1774.6,9.77005332]
[1743694239494,0.00845332,1774.9,1774.6,9.77005332]
[1743694239693,1.12737,1774.7,1774.6,3.21625332]
[1743694240299,1.4874,1774.7,1774.6,4.34369332]
[1743694240705,2.61477,1774.7,1774.6,3.21625332]
[1743694241299,2.61477,1774.7,1774.6,5.76769332]
[1743694241602,2.61477,1774.7,1774.6,4.64025332]
[1743694241798,1.4874,1774.7,1774.6,5.76769332]
[1743694242003,2.61477,1774.7,1774.6,5.76769332]
[1743694242699,0.00845332,1774.9,1774.8,1.12731]
[1743694242700,1.13574332,1774.9,1774.8,1.12731]
[1743694242892,0.00845332,1774.9,1774.7,2.2245]
[1743694243093,1.4769,1774.8,1774.6,3.21625332]
[1743694243293,1.88967,1774.7,1774.6,0.00845332]
[1743694243503,2.60917,1774.7,1774.6,0.00845332]
[1743694243705,1.12763,1774.3,1774.2,3.2078]
[1743694243997,4.398,1774.5,1774.2,3.2078]
[1743694244199,2.60449,1774.4,1774.3,1.12762]
[1743694244404,1.4769,1774.4,1774.3,2.61362]
[1743694245196,2.60434,1774.6,1774.5,1.1275]
[1743694245397,1.4769,1774.6,1774.4,5.82133]
[1743694245592,1.4769,1774.5,1774.4,5.82133]
[1743694245994,2.60922,1774.7,1774.4,4.6938]
[1743694246194,2.2395,1774.7,1774.5,2.61836]
[1743694246391,2.2395,1774.7,1774.3,6.95159]
[1743694246392,1.4772,1774.6,1774.3,6.95159]
[1743694246597,1.12757,1774.4,1774.3,5.824]
[1743694246793,1.4772,1774.6,1774.3,1.12763]
[1743694246993,1.4772,1774.5,1774.4,1.12757]
[1743694247207,1.4772,1774.5,1774.4,4.33537]
[1743694248510,2.6047,1774.5,1774.4,4.33537]
[1743694248708,1.4772,1774.5,1774.4,4.33537]
[1743694248908,2.6047,1774.5,1774.4,4.33537]